bitfinex/quotes_ETHUSD_20250331
["timestamp","ask_amount","ask_price","bid_price","bid_amount"]
[1743396890266,9.16389147,1808.9,1808.5,5.52928]
[1743396890483,9.16384147,1808.9,1808.4,5.52959]
[1743396890682,9.16384147,1808.9,1808.4,11.688759]
[1743396892481,9.06463147,1808.6,1808.2,5.53019]
[1743396892788,2.71239147,1808.5,1808.2,5.457]
[1743396893172,14.59403147,1808.6,1808.2,5.457]
[1743396893567,9.06463147,1808.6,1808.2,10.98734]
[1743396893770,6.35184,1808.8,1808.4,5.52956]
[1743396893973,6.35184,1808.8,1808.3,6.29615]
[1743396893974,5.52888,1808.7,1808.3,6.29615]
[1743396894180,5.52888,1808.7,1808.3,13.001345]
[1743396894786,14.59301147,1808.8,1808.4,5.52973]
[1743396896874,5.52883,1808.7,1808.4,5.52973]
[1743396897603,9.06423147,1808.8,1808.4,5.52973]
[1743396898376,14.59302147,1808.8,1808.4,5.52973]
[1743396898705,5.52883,1808.7,1808.4,5.52973]
[1743396898881,14.59302147,1808.8,1808.4,5.52973]
[1743396899508,3.53549147,1808.8,1808.5,5.52927]
[1743396899703,9.06402147,1808.8,1808.5,5.52927]
[1743396899873,0.8231,1808.8,1808.5,5.52927]
[1743396900078,0.8231,1808.8,1808.5,6.35814037]
[1743396900678,6.35166,1808.8,1808.5,0.82887037]
[1743396900878,9.06405147,1808.8,1808.4,5.52973]
[1743396901679,14.59279147,1808.8,1808.4,5.52973]
[1743396904987,9.06405147,1808.8,1808.4,5.52973]
[1743396905317,13.77049147,1808.7,1808.3,5.53003]
[1743396905915,2.71239147,1808.6,1808.3,5.53003]
[1743396906414,8.24144147,1808.7,1808.3,5.53003]
[1743396908213,3.46499147,1808.5,1808.1,6.3183]
[1743396908420,8.99455147,1808.5,1808.2,5.454]
[1743396910623,2.71239147,1808.4,1807.9,0.7877]
[1743396910798,2.71239147,1808.0,1807.8,31.92]
[1743396911003,6.28357,1808.0,1807.8,31.92]
[1743396911215,8.99596147,1808.0,1807.8,31.92]
[1743396911523,8.99596147,1808.0,1807.6,10.98602]
[1743396911719,6.28357,1808.0,1807.6,10.98602]
[1743396911927,0.7526,1808.0,1807.7,5.53177]
[1743396912721,6.2836,1808.0,1807.6,16.51804]
[1743396912922,6.2836,1808.0,1807.6,10.98598]
[1743396913129,0.7526,1807.7,1807.5,5.454]
[1743396913718,0.7526,1807.7,1807.4,10.98675]
[1743396913924,0.7526,1807.7,1807.4,10.9868]
[1743396914124,0.7526,1807.7,1807.5,1.09868]
[1743396915404,0.7526,1807.7,1807.3,5.53295]
[1743396915617,0.7526,1807.7,1807.4,5.454]
[1743396915811,6.2845,1807.7,1807.4,5.454]
[1743396918197,6.2845,1807.7,1807.4,19.954]
[1743396919130,14.52904147,1807.7,1807.4,14.5]
[1743396919336,8.99689147,1807.7,1807.4,14.5]
[1743396920605,0.7526,1807.7,1807.4,20.03279]
[1743396920805,11.06341,1807.8,1807.4,20.03279]
[1743396921135,5.53178,1807.8,1807.4,20.03279]
[1743396921433,5.5319,1807.7,1807.4,20.03279]
[1743396921803,5.53178,1807.8,1807.4,20.78659]
[1743396921999,11.06359,1807.8,1807.4,20.78659]
[1743396922698,6.3298,1807.9,1807.5,5.53239]
[1743396923129,11.86135,1807.9,1807.5,5.53239]
[1743396923331,11.86135,1807.9,1807.5,20.03239]
[1743396925035,5.53158,1807.8,1807.5,5.53239]
[1743396925334,5.53158,1807.8,1807.4,6.28655]
[1743396925534,5.53158,1807.8,1807.4,21.960705]
[1743396925832,5.53158,1807.8,1807.4,20.78649]
[1743396926131,8.24397147,1807.8,1807.4,20.78649]
[1743396927234,8.24397147,1807.8,1807.5,5.53247]
[1743396927533,2.71239147,1807.8,1807.5,5.53247]
[1743396927732,14.29338147,1808.0,1807.7,0.7538]
[1743396927939,16.35566562,1808.0,1807.7,0.7538]
[1743396928326,21.88684562,1808.0,1807.6,5.53218]
[1743396928526,5.53128,1807.9,1807.6,5.53218]
[1743396929117,16.35566562,1808.0,1807.6,5.53218]
[1743396929407,14.29338147,1808.0,1807.6,5.53218]
[1743396930632,5.53143,1807.9,1807.5,6.28627]
[1743396931538,5.53143,1807.9,1807.5,11.81857]
[1743396932108,3.47049147,1807.8,1807.4,5.5328]
[1743396932310,5.53191,1807.7,1807.4,5.454]
[1743396932533,2.71239147,1807.6,1807.4,5.454]
[1743396935812,5.53191,1807.7,1807.4,5.454]
[1743396936137,5.53191,1807.7,1807.3,5.53309]
[1743396936908,6.28969,1807.8,1807.4,5.53279]
[1743396937316,8.24445147,1807.7,1807.2,11.77321]
[1743396937511,5.53221,1807.6,1807.3,14.5]
[1743396937710,5.53221,1807.6,1807.3,20.03308]
[1743396937942,5.53221,1807.6,1807.3,5.53308]
[1743396938143,8.24435147,1807.7,1807.3,5.53308]
[1743396940047,13.77648147,1807.7,1807.3,5.53308]
[1743396940249,5.53226,1807.6,1807.2,26.27301]
[1743396940439,0.7581,1807.5,1807.2,26.27301]
[1743396941849,0.7581,1807.5,1807.2,11.77301]
[1743396942047,0.7581,1807.5,1807.2,10.98721]
[1743396942251,0.7581,1807.7,1807.4,5.53267]
[1743396942453,0.7581,1807.7,1807.5,5.53235]
[1743396942639,14.29381147,1807.9,1807.5,5.53235]
[1743396942640,14.29381147,1807.9,1807.5,5.53226]
[1743396942820,20.58344147,1807.9,1807.5,5.53226]
[1743396943025,5.53158,1807.8,1807.4,5.53273]
[1743396943221,5.53158,1807.8,1807.4,6.35961437]
[1743396943628,0.7882,1807.6,1807.3,14.5]
[1743396943831,6.3205,1807.6,1807.2,10.98734]
[1743396944047,0.7882,1807.6,1807.3,5.53292]
[1743396944247,6.31981,1807.8,1807.5,5.53239]
[1743396944551,0.7882,1807.8,1807.5,11.06478]
[1743396944757,0.7882,1807.8,1807.5,5.53239]
[1743396946355,0.7882,1807.8,1807.6,5.53217]
[1743396946557,0.7882,1808.0,1807.7,5.53174]
[1743396950384,0.75219634,1808.0,1807.7,5.53174]
[1743396951560,14.29307147,1808.1,1807.7,5.53174]
[1743396951864,8.24307147,1808.1,1807.7,5.53174]
[1743396952656,8.24307147,1808.1,1807.7,6.34771637]
[1743396953434,6.3192,1808.0,1807.7,6.34771637]
[1743396953626,6.3192,1808.0,1807.7,5.53168]
[1743396954332,0.7882,1807.7,1807.3,5.53308]
[1743396954659,6.32243,1807.0,1806.5,6.35171]
[1743396954831,2.71239147,1806.8,1806.5,5.53541]
[1743396955031,2.71239147,1806.8,1806.5,10.98741]
[1743396955531,8.24678147,1806.9,1806.5,10.98741]
[1743396956278,2.71239147,1806.8,1806.5,10.98741]
[1743396958083,2.71239147,1806.8,1806.5,5.53541]
[1743396958278,2.71239147,1806.8,1806.6,5.53524]
[1743396958475,6.32243,1807.0,1806.7,5.53492]
[1743396958476,2.71239147,1806.9,1806.7,5.53492]
[1743396959035,2.71239147,1806.9,1806.6,10.98719]
[1743396959465,2.71239147,1806.9,1806.6,5.53519]
[1743396959681,2.71239147,1806.9,1806.6,11.92608097]
[1743396959863,2.71239147,1806.9,1806.6,11.92602097]
[1743396960249,2.71239147,1806.9,1806.6,7.52079938]
[1743396960444,8.24675147,1806.9,1806.6,1.98570938]
[1743396960679,2.71239147,1806.9,1806.6,1.98570938]
[1743396961470,2.71239147,1806.9,1806.6,7.52084938]
[1743396963463,2.71239147,1806.9,1806.7,14.5]
[1743396963982,2.71239147,1806.9,1806.6,7.52084938]
[1743396964146,6.8285,1807.2,1806.9,5.53419]
[1743396964346,0.7785,1807.2,1807.0,20.03381]
[1743396964875,0.7785,1807.2,1807.0,5.53381]
[1743396965039,6.31131,1807.4,1807.0,5.53381]
[1743396965838,6.31131,1807.4,1807.0,11.06762]
[1743396965839,3.49089147,1807.4,1807.0,11.06762]
[1743396966045,9.02388147,1807.4,1807.0,5.53381]
[1743396966244,10.53126962,1807.4,1807.0,5.53381]
[1743396967847,10.53126962,1807.4,1807.0,11.06763]
[1743396968045,9.02388147,1807.4,1807.0,11.06763]
[1743396968245,9.02388147,1807.4,1807.0,5.53381]
[1743396968457,9.02388147,1807.4,1807.0,6.66709525]
[1743396968976,3.49089147,1807.4,1807.1,5.5336]
[1743396970977,3.49089147,1807.4,1807.1,11.06718]
[1743396971141,3.49089147,1807.4,1807.1,12.31928043]
[1743396971349,3.49089147,1807.4,1807.1,6.78568043]
[1743396971543,3.49089147,1807.4,1807.1,12.31920043]
[1743396971845,2.71239147,1807.4,1807.1,12.31920043]
[1743396972783,2.71239147,1807.4,1807.1,6.78562043]
[1743396972955,2.71239147,1807.4,1807.1,5.53352]
[1743396973582,2.71239147,1807.4,1807.1,5.5335]
[1743396973766,2.71239147,1807.4,1807.2,5.5334]
[1743396975047,2.71239147,1807.4,1807.1,5.53366]
[1743396975352,2.71239147,1807.4,1807.3,5.53311]
[1743396975685,0.792,1807.6,1807.3,5.53311]
[1743396975686,3.50439147,1807.6,1807.3,5.53311]
[1743396977975,9.03659147,1807.6,1807.3,5.53311]
[1743396978283,10.79344162,1807.6,1807.3,5.53311]
[1743396980502,0.792,1807.6,1807.0,0.7762]
[1743396980672,6.28487,1808.0,1807.5,6.3147]
[1743396980982,0.7538,1808.2,1807.7,6.31429]
[1743396981304,2.71239147,1808.3,1808.1,5.53066]
[1743396981506,2.71239147,1808.3,1808.2,5.53036]
[1743396981791,2.71239147,1808.3,1808.1,5.53066]
[1743396982683,0.7538,1808.4,1808.1,6.31306]
[1743396982850,0.7538,1808.6,1808.3,5.52991]
[1743396983049,6.05,1808.7,1808.4,5.52972]
[1743396983253,8.24123147,1808.7,1808.3,5.5298]
[1743396983465,2.71239147,1808.7,1808.3,5.5298]
[1743396983670,2.71239147,1808.7,1808.3,6.635816]
[1743396983874,8.99472147,1808.8,1808.4,5.52955]
[1743396984072,8.24145147,1808.7,1808.3,11.05971]
[1743396984258,8.24145147,1808.7,1808.3,5.5298]
[1743396985582,2.71239147,1808.7,1808.4,5.5297]
[1743396986686,2.71239147,1808.7,1808.4,5.52954]
[1743396987058,2.71239147,1808.7,1808.5,0.552954]
[1743396987281,2.71239147,1808.7,1808.4,5.52954]
[1743396987595,8.99489147,1808.8,1808.4,5.52954]
[1743396988106,3.46619147,1808.8,1808.5,5.52944]
[1743396989391,3.46619147,1808.8,1808.4,6.31194]
[1743396989783,8.99475147,1808.8,1808.4,6.31194]
[1743396989994,3.46619147,1808.8,1808.4,11.84151]
[1743396990190,3.46619147,1808.8,1808.4,6.31194]
[1743396990370,8.99471147,1808.8,1808.4,6.31194]
[1743396990562,3.46619147,1808.8,1808.5,5.5294]
[1743396990758,11.70696,1808.9,1808.5,5.5294]
[1743396990974,8.89087147,1808.9,1808.5,1.184134]
[1743396991284,5.52855,1808.8,1808.4,6.31194]
[1743396991765,2.71239147,1808.8,1808.5,5.52941]
[1743396991964,8.89087147,1808.9,1808.5,5.52941]
[1743396992167,5.52857,1808.8,1808.4,6.31194]
[1743396992497,0.7637,1808.7,1808.4,6.705534]
[1743396994690,0.7637,1808.7,1808.4,1.175994]
[1743396995011,5.52913,1808.6,1808.3,5.448]
[1743396995196,9.00517147,1808.7,1808.3,10.97804]
[1743396995689,9.00517147,1808.7,1808.3,16.50787]
[1743396995894,9.00517147,1808.7,1808.3,10.97783]
[1743396997192,14.53426147,1808.7,1808.3,10.97783]
[1743396997369,9.00517147,1808.7,1808.3,10.97783]
[1743396997562,5.52913,1808.6,1808.1,5.53064]
[1743396997761,3.53959147,1808.3,1807.9,31.923]
[1743396997966,8.24287147,1808.2,1807.9,31.923]
[1743396998466,5.53078,1808.1,1807.9,31.923]
[1743396998661,8.24317147,1808.1,1807.9,31.923]
[1743396999675,8.24317147,1808.1,1807.7,18.43537855]
[1743396999881,8.24275147,1808.2,1807.8,5.53157]
[1743397000076,2.71239147,1808.2,1807.9,5.53127]
[1743397000281,2.71239147,1808.2,1808.0,5.53096]
[1743397000480,0.8272,1808.3,1808.0,5.53096]
[1743397000695,6.35729,1808.3,1807.9,5.53127]
[1743397002994,0.8272,1808.3,1807.9,5.53105]
[1743397003301,0.8272,1808.3,1807.9,6.084155]
[1743397003501,6.35732,1808.3,1807.9,6.084155]
[1743397004797,0.8272,1808.3,1808.0,5.53096]
[1743397005016,3.53179147,1808.4,1808.1,5.53052]
[1743397005185,9.06155147,1808.4,1808.1,5.53052]
[1743397005517,9.06155147,1808.4,1808.0,6.33164]
[1743397005678,9.06155147,1808.4,1808.1,0.633164]
[1743397005871,9.06155147,1808.4,1808.0,6.33164]
[1743397006505,6.34904,1808.5,1808.1,5.53046]
[1743397007117,11.87872,1808.5,1808.1,5.53046]
[1743397008022,2.71239147,1808.6,1808.2,5.53021]
[1743397008322,8.24156147,1808.6,1808.2,5.53021]
[1743397009221,8.24156147,1808.6,1808.2,11.06042]
[1743397009623,2.71239147,1808.6,1808.3,5.52998]
[1743397009799,2.71239147,1808.6,1808.4,5.52967]
[1743397009991,0.8194,1808.7,1808.4,5.52967]
[1743397011711,0.8194,1808.7,1808.4,5.52953]
[1743397012025,0.8194,1808.7,1808.5,0.552953]
[1743397012222,5.52865,1808.8,1808.5,0.552953]
[1743397012530,8.24104147,1808.8,1808.5,0.552953]
[1743397017844,1.4694,1808.9,1808.5,0.552953]
[1743397018011,0.65,1808.9,1808.7,5.52863]
[1743397018198,0.65,1808.9,1808.8,5.52852]
[1743397018399,0.65,1808.9,1808.7,5.52863]
[1743397020430,0.65,1808.9,1808.6,6.32991]
[1743397020628,0.7817,1808.8,1808.5,5.52936]
[1743397020827,0.7817,1808.8,1808.5,10.97236]
[1743397022303,3.49409147,1808.8,1808.5,10.97236]
[1743397024727,6.17841,1808.9,1808.6,5.52911]
[1743397024932,0.65,1808.9,1808.6,5.5291]
[1743397025130,6.17839,1808.9,1808.5,10.97236]
[1743397025728,6.17839,1808.9,1808.5,16.50168]
[1743397025932,6.17839,1808.9,1808.5,10.97232]
[1743397026134,6.17839,1808.9,1808.5,16.50164]
[1743397026727,6.17839,1808.9,1808.5,10.97232]
[1743397027906,6.17839,1808.9,1808.6,5.52912]
[1743397028823,6.17839,1808.9,1808.5,16.50154]
[1743397029538,0.65,1808.9,1808.6,5.5291]
[1743397030535,0.65,1808.9,1808.8,5.52852]
[1743397033851,0.65,1808.9,1808.8,6.29342]
[1743397034449,0.65,1808.9,1808.8,7.25040672]
[1743397036039,0.42439755,1808.9,1808.8,42.15940672]
[1743397036933,6.3843,1809.9,1809.4,5.5266]
[1743397037123,0.7589,1809.7,1809.5,5.99266]
[1743397037958,2.71239147,1809.6,1809.5,5.44]
[1743397038256,0.7589,1809.3,1809.2,5.44]
[1743397039458,0.7589,1809.3,1809.1,5.439]
[1743397039929,0.7589,1809.3,1809.0,5.52769]
[1743397040129,0.7589,1809.3,1809.1,5.439]
[1743397041048,8.99833147,1809.3,1808.8,37.84446672]
[1743397041268,8.99833147,1809.3,1808.9,5.52809]
[1743397041473,14.52557147,1809.3,1808.9,10.96709]
[1743397042129,8.99833147,1809.3,1808.9,5.439]
[1743397042328,8.99833147,1809.3,1808.9,10.96707]
[1743397042539,14.52557147,1809.3,1808.9,10.96707]
[1743397042741,5.52736,1809.2,1808.9,5.439]
[1743397043434,5.52731,1809.2,1808.9,5.439]
[1743397044455,5.52731,1809.2,1808.9,10.96721]
[1743397045462,8.99833147,1809.3,1808.9,10.96721]
[1743397045962,5.52731,1809.2,1808.9,5.439]
[1743397047065,5.52914,1808.6,1808.4,31.905]
[1743397047272,2.71239147,1808.6,1808.4,31.905]
[1743397047763,0.7589,1808.7,1808.4,37.43473]
[1743397047972,3.7589,1808.9,1808.5,5.52931]
[1743397048139,11.99959147,1808.9,1808.5,5.52931]
[1743397048340,6.47129147,1808.9,1808.6,5.52906]
[1743397048535,6.47129147,1808.9,1808.5,5.52931]
[1743397048768,11.99975147,1808.9,1808.5,5.52931]
[1743397049666,2.71239147,1808.7,1808.4,31.905]
[1743397049872,8.24133147,1808.7,1808.5,5.438]
[1743397050168,2.71239147,1808.7,1808.5,5.438]
[1743397051138,8.24124147,1808.7,1808.5,5.438]
[1743397051568,2.71239147,1808.7,1808.5,5.438]
[1743397053045,2.71239147,1808.9,1808.6,6.29382]
[1743397053566,2.71239147,1808.9,1808.7,14.5]
[1743397054745,13.76921147,1808.9,1808.7,14.5]
[1743397055149,2.71239147,1808.8,1808.7,14.5]
[1743397055351,2.71239147,1808.8,1808.5,16.49665]
[1743397055751,2.71239147,1808.8,1808.6,14.5]
[1743397062175,2.71239147,1808.8,1808.6,5.5291]
[1743397062340,2.71239147,1808.8,1808.6,5.52897]
[1743397062545,8.24031147,1809.0,1808.7,5.52876]
[1743397062746,8.24049147,1809.0,1808.6,5.52897]
[1743397062951,8.24049147,1809.0,1808.6,6.625667]
[1743397063576,3.46789147,1809.1,1808.8,5.52822]
[1743397064749,2.71239147,1809.1,1808.8,5.52822]
[1743397065857,8.24002147,1809.1,1808.8,5.52822]
[1743397066049,2.71239147,1809.1,1808.8,5.52822]
[1743397066699,8.24000147,1809.1,1808.7,6.31501]
[1743397066856,5.5289,1808.7,1808.4,0.7862]
[1743397067064,2.71239147,1808.5,1808.2,10.96719]
[1743397067755,8.24175147,1808.6,1808.2,10.96719]
[1743397068179,8.24175147,1808.6,1808.2,16.49737]
[1743397068562,8.24175147,1808.6,1808.2,10.96718]
[1743397068969,8.24175147,1808.6,1808.3,14.5]
[1743397069297,2.71239147,1808.5,1808.3,14.5]
[1743397070592,5.53024,1808.3,1808.1,31.912]
[1743397070777,5.53067,1808.1,1807.9,5.437]
[1743397070952,0.7725,1808.1,1807.8,14.5]
[1743397071453,0.7725,1808.1,1807.8,20.03149]
[1743397071691,0.7725,1808.1,1807.8,5.53149]
[1743397072052,0.7725,1808.1,1807.8,10.96849]
[1743397072993,0.7725,1808.1,1807.8,16.49983]
[1743397073200,9.53489147,1808.4,1808.1,5.53048]
[1743397073696,9.53489147,1808.4,1808.2,14.5]
[1743397074667,15.06471147,1808.4,1808.2,14.5]
[1743397074873,20.59471147,1808.4,1808.0,0.7511]
[1743397075172,2.71239147,1808.2,1808.0,0.628211]
[1743397075371,2.71239147,1808.2,1808.0,6.158931]
[1743397077617,3.48489147,1808.4,1808.0,6.158931]
[1743397077805,2.71239147,1808.4,1808.0,6.159051]
[1743397078103,2.71239147,1808.4,1807.8,11.71967]
[1743397078104,3.48489147,1808.6,1808.2,5.53025]
[1743397078259,3.48489147,1808.6,1808.3,5.52994]
[1743397078459,2.71239147,1808.6,1808.1,15.9270051]
[1743397078685,2.71239147,1808.6,1808.4,5.5296]
[1743397079470,2.71239147,1808.6,1808.4,6.08256]
[1743397079669,2.71239147,1808.6,1808.4,0.55296]
[1743397080388,2.71239147,1808.6,1808.4,6.08266]
[1743397081113,2.71239147,1808.9,1808.5,6.34054]
[1743397081440,2.71239147,1808.9,1808.6,5.52902]
[1743397081737,2.71239147,1808.8,1808.6,5.52902]
[1743397081939,2.71239147,1808.8,1808.5,6.34054]
[1743397082238,2.71239147,1808.8,1808.5,7.17586027]
[1743397082442,2.71239147,1808.8,1808.5,12.70509027]
[1743397082610,2.71239147,1808.8,1808.5,7.17565027]
[1743397083532,2.71239147,1808.8,1808.5,6.36455027]
[1743397084809,8.24109147,1808.8,1808.4,6.08268]
[1743397085001,0.8217,1808.7,1808.4,6.08268]
[1743397085939,0.8217,1808.7,1808.4,6.08254]
[1743397086141,0.8217,1808.7,1808.5,5.52944]
[1743397087439,0.8217,1808.7,1808.4,6.08254]
[1743397089663,0.8217,1808.7,1808.4,5.52958]
[1743397089860,2.71239147,1808.8,1808.5,5.52925]
[1743397090063,2.71239147,1808.8,1808.6,5.5291]
[1743397090368,2.71239147,1808.8,1808.7,5.52883]
[1743397090863,5.71239147,1809.0,1808.7,5.52883]
[1743397091065,2.71239147,1809.0,1808.7,5.52883]
[1743397091362,2.71239147,1809.0,1808.8,5.52825]
[1743397091660,2.71239147,1809.0,1808.9,5.52822]
[1743397091859,2.71239147,1809.1,1808.9,5.52822]
[1743397092019,8.23971147,1809.2,1808.9,5.52822]
[1743397092923,8.23971147,1809.2,1808.8,5.52845]
[1743397094046,8.23971147,1809.2,1808.8,11.05685]
[1743397094221,8.23971147,1809.2,1808.8,11.88344237]
[1743397095052,8.23971147,1809.2,1808.8,6.35499237]
[1743397095427,8.23971147,1809.2,1808.8,11.88332237]
[1743397095922,8.23971147,1809.2,1808.8,6.35492237]
[1743397096854,8.23971147,1809.2,1808.8,11.88324237]
[1743397097625,8.23971147,1809.2,1808.8,6.35491237]
[1743397097825,8.23971147,1809.2,1808.8,5.52832]
[1743397098456,2.71239147,1809.1,1808.8,11.05662]
[1743397098856,2.71239147,1809.1,1808.8,5.5283]
[1743397099853,2.71239147,1809.1,1808.8,11.0566]
[1743397100179,2.71239147,1809.1,1808.9,5.52819]
[1743397100351,2.71239147,1809.2,1809.0,5.52771]
[1743397102254,3.53409147,1809.3,1809.1,5.52761]
[1743397102456,3.52499147,1809.4,1809.1,5.52744]
[1743397102654,3.52499147,1809.4,1809.1,6.632943]
[1743397103044,3.52499147,1809.4,1809.1,12.160373]
[1743397103252,2.71239147,1809.5,1809.2,5.52724]
[1743397103451,2.71239147,1809.5,1809.2,5.52711]
[1743397104225,0.8126,1809.6,1809.2,5.52711]
[1743397104427,2.71239147,1809.5,1809.2,7.0211743]
[1743397105537,2.71239147,1809.5,1809.2,12.5482443]
[1743397105851,2.71239147,1809.5,1809.2,7.0211343]
[1743397106053,2.71239147,1809.4,1809.1,5.52754]
[1743397107673,0.8126,1809.3,1809.1,5.52754]
[1743397107832,6.3392,1809.5,1809.1,5.52754]
[1743397108034,9.05159147,1809.5,1809.1,5.52754]
[1743397108251,9.05159147,1809.5,1809.1,11.05493]
[1743397108434,9.05159147,1809.5,1809.1,5.52739]
[1743397109566,14.57825147,1809.5,1809.1,5.52739]
[1743397110649,3.52499147,1809.5,1809.1,5.52739]
[1743397110967,3.52499147,1809.5,1809.2,5.52719]
[1743397111570,0.8126,1809.5,1809.2,5.52719]
[1743397111739,2.71239147,1809.4,1809.2,5.52719]
[1743397112138,2.71239147,1809.4,1809.1,6.706609]
[1743397112139,2.71239147,1809.4,1809.3,5.52699]
[1743397112855,2.71239147,1809.6,1809.4,5.52639]
[1743397113056,2.71239147,1809.6,1809.4,6.842229]
[1743397113541,2.71239147,1809.6,1809.4,1.315839]
[1743397113846,2.71239147,1809.6,1809.4,0.7632]
[1743397114665,2.71239147,1809.6,1809.3,6.29001]
[1743397114870,8.23858147,1809.6,1809.2,5.52729]
[1743397115369,2.71239147,1809.4,1809.2,5.52725]
[1743397115670,2.71239147,1809.4,1809.1,6.29067]
[1743397115840,3.54109147,1809.4,1809.1,7.463137]
[1743397116349,5.5261,1809.6,1809.1,7.463137]
[1743397116550,2.71239147,1809.5,1809.2,5.52727]
[1743397116874,2.71239147,1809.5,1809.2,5.52726]
[1743397117043,8.23893147,1809.5,1809.1,7.463047]
[1743397117244,8.23893147,1809.5,1809.1,6.699847]
[1743397118271,2.71239147,1809.3,1809.0,10.96187]
[1743397118661,5.52654,1809.5,1808.7,40.4318]
[1743397118662,9.06882147,1809.1,1808.7,0.7632]
[1743397118876,2.71239147,1808.9,1808.6,5.431]
[1743397119177,2.71239147,1808.8,1808.6,5.431]
[1743397120193,2.71239147,1808.7,1808.4,31.903]
[1743397120373,2.71239147,1808.5,1808.4,31.903]
[1743397121278,2.71239147,1808.6,1808.5,5.52943]
[1743397121451,2.71239147,1808.6,1808.4,42.9625]
[1743397121775,2.71239147,1808.7,1808.4,37.43256]
[1743397122080,3.54109147,1808.8,1808.5,5.52929]
[1743397125879,0.8287,1808.8,1808.6,5.52897]
[1743397126046,0.7634,1809.0,1808.7,5.52883]
[1743397128691,2.71239147,1809.1,1808.8,6.33686]
[1743397130595,6.29076,1809.2,1808.8,6.33686]
[1743397133587,10.45619262,1809.2,1808.8,0.8085]
[1743397133887,5.52763,1809.1,1808.8,0.8085]
[1743397134582,4.92883262,1809.2,1808.6,5.52912]
[1743397134883,8.24054147,1809.0,1808.6,17.29754]
[1743397135292,8.24054147,1809.0,1808.6,11.76842]
[1743397135586,5.52761,1809.1,1808.7,5.52855]
[1743397135782,3.47579147,1809.2,1808.8,5.52846]
[1743397135988,9.00331147,1809.2,1808.8,5.52846]
[1743397136187,14.53089147,1809.2,1808.8,5.52846]
[1743397136689,9.00331147,1809.2,1808.8,5.52846]
[1743397137888,2.71239147,1809.2,1808.9,0.8085]
[1743397138061,2.71239147,1809.2,1808.9,6.3365]
[1743397138757,8.23951147,1809.3,1808.9,6.3365]
[1743397138958,8.23951147,1809.3,1808.9,7.523]
[1743397139687,8.23951147,1809.3,1808.9,13.05099]
[1743397139898,2.71239147,1809.3,1809.0,5.52778]
[1743397140390,2.71239147,1809.5,1809.1,0.8062]
[1743397140567,2.71239147,1809.5,1809.2,5.52722]
[1743397141386,9.03270147,1809.6,1809.2,5.52722]
[1743397141709,13.76556147,1809.5,1809.1,6.33361]
[1743397142000,9.03359147,1809.3,1809.0,5.43]
[1743397142877,14.56083147,1809.3,1809.0,5.43]
[1743397143198,9.03359147,1809.3,1809.0,5.43]
[1743397144463,5.5273,1809.2,1809.0,5.43]
[1743397144875,9.03359147,1809.3,1809.0,5.43]
[1743397145084,10.48962162,1809.3,1809.0,5.43]
[1743397145997,9.03359147,1809.3,1809.0,5.43]
[1743397146970,14.56083147,1809.3,1809.0,5.43]
[1743397147294,5.52734,1809.2,1809.0,5.43]
[1743397147494,5.52778,1809.1,1808.5,0.8062]
[1743397147666,9.03496147,1808.9,1808.5,6.33562]
[1743397147867,9.03496147,1808.9,1808.5,17.29385]
[1743397148066,3.50659147,1808.9,1808.6,5.52912]
[1743397149668,3.50659147,1808.9,1808.6,11.05804]
[1743397149995,3.50659147,1808.9,1808.6,5.52892]
[1743397150214,3.50659147,1808.9,1808.6,12.234352]
[1743397151263,3.50659147,1808.9,1808.6,6.705332]
[1743397151898,3.50659147,1808.9,1808.6,12.234272]
[1743397152195,3.50659147,1808.9,1808.6,6.705332]
[1743397152595,3.50659147,1808.9,1808.6,12.234342]
[1743397154102,3.50659147,1808.9,1808.6,6.705332]
[1743397154271,9.03487147,1808.9,1808.5,11.76461]
[1743397154698,9.03487147,1808.9,1808.5,17.29384]
[1743397154878,9.03487147,1808.9,1808.5,11.76443]
[1743397155190,3.50659147,1808.9,1808.5,11.76442]
[1743397155395,3.50659147,1808.9,1808.6,5.52911]
[1743397155992,9.03496147,1808.9,1808.5,6.33542]
[1743397156197,9.03496147,1808.9,1808.5,11.76442]
[1743397158405,9.03496147,1808.9,1808.5,26.26442]
[1743397159399,9.03496147,1808.9,1808.5,26.26441]
[1743397159571,3.50659147,1808.9,1808.6,5.52902]
[1743397159773,3.50659147,1808.9,1808.7,5.52881]
[1743397161699,6.8415,1809.1,1808.8,5.52852]
[1743397161883,6.8415,1809.1,1808.9,6.080932]
[1743397162072,0.7915,1809.1,1808.8,11.05685]
[1743397163775,0.7915,1809.1,1808.8,5.52833]
[1743397169606,8.24046147,1809.0,1808.6,5.52906]
[1743397170006,8.24046147,1809.0,1808.6,11.058]
[1743397170307,0.7915,1809.1,1808.8,5.52834]
[1743397173211,6.2822,1809.3,1808.8,1.870714]
[1743397173418,8.99459147,1809.3,1808.9,5.52803]
[1743397174300,14.52181147,1809.3,1808.9,5.52803]
[1743397174918,8.99459147,1809.3,1808.9,5.52803]
[1743397176401,8.99459147,1809.3,1808.9,16.48303]
[1743397176704,8.99459147,1809.3,1809.0,5.52789]
[1743397177418,5.52669,1809.4,1809.0,5.52789]
[1743397177717,13.76600147,1809.4,1809.0,5.52789]
[1743397179121,5.52702,1809.3,1809.0,5.52789]
[1743397180516,5.52702,1809.3,1808.9,25.45513]
[1743397180690,5.52702,1809.3,1808.9,10.95513]
[1743397181219,5.52702,1809.3,1808.9,16.48316]
[1743397181586,5.52702,1809.3,1809.0,6.29527]
[1743397182009,8.23908147,1809.4,1809.0,6.29527]
[1743397182211,15.82306062,1809.4,1809.0,6.29527]
[1743397182627,5.52701,1809.3,1809.0,0.7674]
[1743397185623,11.05422,1809.3,1809.0,0.7674]
[1743397186023,5.52701,1809.3,1809.0,0.7674]
[1743397186224,11.05422,1809.3,1809.0,0.7674]
[1743397186515,7.10937806,1809.3,1809.0,0.7674]
[1743397187743,0.8267,1808.9,1808.5,11.77141]
[1743397187943,6.35495,1808.9,1808.5,6.34641]